fUST/lending_fUST_20250424
["ID","MTS","AMOUNT","RATE_DAILY","PERIOD"]
[358817243,1745461850547,-500.0,0.00022191,2]
[358817244,1745461850556,-822.36,0.00022191,2]
[358817245,1745461850565,-500.0,0.00022191,2]
[358817246,1745461850575,-3013.18,0.00022191,2]
[358817247,1745461850584,-500.0,0.00022191,2]
[358817248,1745461850594,-500.0,0.00022191,2]
[358817249,1745461850604,-500.0,0.00022191,2]
[358817250,1745461850614,-676.78,0.00022191,2]
[358817251,1745461850623,-151.0,0.00022191,7]
[358817252,1745461850633,-500.0,0.00022191,2]
[358817253,1745461850643,-501.41621727,0.00022191,2]
[358817254,1745461850652,-471.883231,0.00022191,2]
[358817255,1745461850662,-500.0,0.00022191,2]
[358817256,1745461850671,-500.0,0.00022191,2]
[358817257,1745461850680,-646.11367989,0.00022191,2]
[358817258,1745461850690,-500.0,0.00022191,2]
[358817259,1745461850700,-471.883231,0.00022191,2]
[358817260,1745461850709,-816.52,0.00022191,2]
[358817261,1745461850719,-500.0,0.00022191,2]
[358817262,1745461850729,-500.0,0.00022191,2]
[358817263,1745461850738,-500.0,0.00022191,2]
[358817264,1745461850747,-500.0,0.00022191,2]
[358817265,1745461850756,-500.0,0.00022191,2]
[358817266,1745461850766,-565.74,0.00022191,2]
[358817267,1745461850776,-500.0,0.00022191,2]
[358817268,1745461850785,-500.0,0.00022191,2]
[358817269,1745461850795,-500.0,0.00022191,2]
[358817270,1745461850805,-236.0,0.00022192,2]
[358817271,1745461850816,-421.38624401,0.00022228,2]
[358817272,1745461850826,-22635.77190219,0.0002224,2]
[358817273,1745461850836,-154.816041,0.0002224,7]
[358817274,1745461850845,-154.816041,0.0002224,7]
[358817275,1745461850855,-151.0,0.0002224,7]
[358817276,1745461850865,-155.607808,0.0002224,7]
[358817277,1745461850875,-471.883231,0.0002224,2]
[358817278,1745461850885,-471.883231,0.0002224,2]
[358817279,1745461850895,-151.0,0.00022279,7]
[358817280,1745461850905,-151.0,0.00022279,7]
[358817281,1745461850915,-151.0,0.00022279,7]
[358817282,1745461850924,-191.151591,0.00022279,7]
[358817283,1745461850935,-151.0,0.00022279,7]
[358817284,1745461850944,-224.90946483,0.00022284,2]
[358817285,1745461850953,-421.38624401,0.00022365,2]
[358817286,1745461850963,-151.0,0.000224,6]
[358817287,1745461850972,-151.0,0.000224,10]
[358817288,1745461850982,-162.30920607,0.00022464,2]
[358817289,1745461850991,-49484.55755474,0.00022464,3]
[358817290,1745461851005,-23314.82558201,0.00022464,3]
[358817295,1745461876731,-300.00439089,0.00018025,2]
[358817359,1745463032433,-335.8979452,0.00019931,2]
[358817361,1745463032447,-205.0777591,0.00020353,2]
[358817363,1745463032459,-1200.0,0.00020359,2]
[358817364,1745463032469,-871.02943069,0.00020364,2]
[358817365,1745463032479,-253.3559626,0.00020515,2]
[358817366,1745463032489,-1179.76112508,0.00020571,2]
[358817367,1745463032498,-1882.93831076,0.00020573,2]
[358817368,1745463032515,-11388.55030784,0.00020573,2]
[358817369,1745463032524,-501.0,0.00020866,2]
[358817370,1745463032533,-463.8893106,0.00020867,2]
[358817371,1745463032543,-419.839182,0.00020917,2]
[358817372,1745463032554,-2387.85914316,0.00021717,2]
[358817373,1745463032565,-10000.00000001,0.00021817,2]
[358817375,1745463032574,-472.64850458,0.00021817,2]
[358817378,1745463032861,-172.84398253,0.00021817,2]
[358817380,1745463032873,-1129.0458141,0.000219,2]
[358817382,1745463032882,-420.89490186,0.00021906,2]
[358817384,1745463032892,-500.0,0.00021917,2]
[358817386,1745463032902,-500.0,0.00021917,2]
[358817388,1745463032911,-500.0,0.00021917,2]
[358817390,1745463032921,-500.0,0.00021917,2]
[358817392,1745463032930,-500.0,0.00021917,2]
[358817394,1745463032940,-500.0,0.00021917,2]
[358817396,1745463032950,-500.0,0.00021917,2]
[358817398,1745463032959,-500.0,0.00021917,2]
[358817400,1745463032968,-501.60441298,0.00021917,2]
[358817401,1745463032978,-500.0,0.00021917,2]
[358817403,1745463032988,-500.0,0.00021917,2]
[358817405,1745463032998,-500.0,0.00021917,2]
[358817407,1745463033007,-500.0,0.00021917,2]
[358817409,1745463033017,-500.0,0.00021917,2]
[358817411,1745463033028,-500.0,0.00021917,2]
[358817413,1745463033037,-500.0,0.00021917,2]
[358817415,1745463033047,-500.0,0.00021917,2]
[358817418,1745463033058,-272.54223893,0.00021917,2]
[358817420,1745463033067,-500.0,0.00021917,2]
[358817422,1745463033076,-507.68529747,0.00021917,2]
[358817424,1745463033086,-500.0,0.00021917,2]
[358817426,1745463033095,-500.0,0.00021917,2]
[358817427,1745463033105,-500.0,0.00021917,2]
[358817428,1745463033115,-500.0,0.00021917,2]
[358817429,1745463033125,-500.0,0.00021917,2]
[358817430,1745463033134,-500.11095084,0.00021917,2]
[358817432,1745463033143,-500.0,0.00021917,2]
[358817433,1745463033153,-500.0,0.00021917,2]
[358817435,1745463033163,-270.04147169,0.00021917,2]
[358817437,1745463033173,-504.07446353,0.00021917,2]
[358817439,1745463033183,-639.40498532,0.00021917,2]
[358817441,1745463033192,-500.0,0.00021917,2]
[358817443,1745463033202,-500.0,0.00021917,2]
[358817445,1745463033212,-275.60695391,0.00021917,2]
[358817509,1745463038349,-224.39304609,0.00021917,2]
[358817511,1745463038359,-417.55234371,0.00021917,2]
[358817514,1745463038371,-82.44765629,0.00021917,2]
[358817516,1745463038381,-500.0,0.00021917,2]
[358817518,1745463038391,-502.51762018,0.00021917,2]
[358817520,1745463038401,-500.0,0.00021917,2]
[358817522,1745463038410,-500.0,0.00021917,2]
[358817524,1745463038420,-500.0,0.00021917,2]
[358817526,1745463038430,-500.0,0.00021917,2]
[358817528,1745463038440,-177.46329019,0.00021917,2]
[358817530,1745463038450,-500.0,0.00021917,2]
[358817532,1745463038460,-500.0,0.00021917,2]
[358817534,1745463038469,-7.59808948,0.00021917,2]
[358817537,1745463038490,-351.27555648,0.00021917,2]
[358817661,1745463067174,1258.999999,0.00018,30]
[358817703,1745464232549,-300.0,0.00019477,2]
[358817704,1745464232560,-1200.0,0.00019477,2]
[358817705,1745464232570,-300.0,0.00019477,2]
[358817706,1745464232580,-500.0,0.00019478,2]
[358817707,1745464232589,-500.0,0.00019478,2]
[358817709,1745464232605,-500.0,0.00019478,2]
[358817711,1745464232616,-500.0,0.00019478,2]
[358817714,1745464232626,-500.0,0.00019478,2]
[358817717,1745464232636,-500.0,0.00019478,2]
[358817719,1745464232646,-448.72713656,0.00019478,2]
[358817721,1745464232656,-500.0,0.00019478,2]
[358817723,1745464232666,-200.82927964,0.00019478,2]
[358817725,1745464232676,-500.0,0.00019478,2]
[358817727,1745464232686,-500.0,0.00019478,2]
[358817729,1745464232696,-500.0,0.00019478,2]
[358817731,1745464232706,-500.0,0.00019478,2]
[358817733,1745464232716,-500.0,0.00019478,2]
[358817735,1745464232727,-500.0,0.00019478,2]
[358817737,1745464232737,-500.0,0.00019478,2]
[358817739,1745464232746,-500.0,0.00019478,2]
[358817741,1745464232756,-500.0,0.00019478,2]
[358817743,1745464232766,-500.0,0.00019478,2]
[358817746,1745464232775,-500.0,0.00019478,2]
[358817748,1745464232785,-500.0,0.00019478,2]
[358817750,1745464232795,-500.0,0.00019478,2]
[358817751,1745464232804,-500.0,0.00019478,2]
[358817753,1745464232814,-500.0,0.00019478,2]
[358817755,1745464232824,-500.0,0.00019478,2]
[358817758,1745464232834,-500.0,0.00019478,2]
[358817759,1745464232843,-500.0,0.00019478,2]
[358817760,1745464232853,-500.0,0.00019478,2]
[358817761,1745464232863,-500.0,0.00019478,2]
[358817762,1745464232873,-500.0,0.00019478,2]
[358817763,1745464232882,-500.0,0.00019478,2]
[358817764,1745464232892,-500.0,0.00019479,2]
[358817765,1745464232901,-240.30847966,0.00019479,2]
[358817766,1745464232911,-500.0,0.00019479,2]
[358817767,1745464232920,-975.34456652,0.00019481,2]
[358817768,1745464232931,-7900.0,0.000195,2]
[358817769,1745464232942,-3601.65364008,0.00019581,2]
[358817808,1745464238659,-978.2397184,0.00019381,2]
[358817810,1745464238671,-1273.48748745,0.00019381,2]
[358817812,1745464238681,-4622.51442982,0.00019581,2]
[358817814,1745464238691,-152.68707532,0.00019712,2]
[358817816,1745464238700,-472.35988234,0.00019817,2]
[358817818,1745464238713,-405.21276887,0.00019817,2]
[358817821,1745464238722,-5593.40654738,0.00020319,2]
[358817825,1745464238738,-220081.36637324,0.00020319,2]
[358817827,1745464238748,-48874.41175486,0.00020319,3]
[358817829,1745464238757,-840.0731918,0.00020319,3]
[358817831,1745464238767,-12576.49486522,0.00020319,3]
[358817833,1745464238776,-22697.0664013,0.0002032,2]
[358817835,1745464238786,-209.99546925,0.00020373,2]
[358817837,1745464238795,-500.0,0.00020373,2]
[358817839,1745464238804,-503.01593427,0.00020373,2]
[358817841,1745464238814,-500.0,0.00020373,2]
[358817843,1745464238824,-500.0,0.00020373,2]
[358817845,1745464238833,-500.0,0.00020373,2]
[358817847,1745464238843,-500.0,0.00020373,2]
[358817849,1745464238853,-500.0,0.00020373,2]
[358817851,1745464238863,-500.0,0.00020373,2]
[358817853,1745464238873,-500.0,0.00020373,2]
[358817855,1745464238882,-503.2454814,0.00020373,2]
[358817857,1745464238892,-500.0,0.00020373,2]
[358817858,1745464238901,-168.55449762,0.00020872,2]
[358817860,1745464238910,-209.919591,0.00020917,2]
[358817862,1745464238920,-160.0,0.00020972,3]
[358817864,1745464238929,-500.0,0.00020973,2]
[358817866,1745464238939,-160.0,0.00020989,3]
[358817868,1745464238948,-840.0731918,0.00020989,3]
[358817870,1745464238957,-10777.197702,0.0002099,2]
[358817872,1745464238966,-962.0,0.00021,2]
[358817874,1745464238976,-1536.0,0.00021,2]
[358817876,1745464238985,-2211.0,0.00021,2]
[358817878,1745464238994,-157.36,0.00021,2]
[358817880,1745464239004,-168.5544976,0.00021177,2]
[358817882,1745464239013,-420.0,0.0002122,2]
[358817883,1745464239022,-157.2502195,0.00021288,2]
[358817886,1745464239032,-157.2502195,0.00021288,2]
[358817887,1745464239041,-157.2502195,0.00021288,2]
[358817889,1745464239051,-300.0,0.00021323,2]
[358817891,1745464239060,-168.5544976,0.00021482,2]
[358817893,1745464239070,-157.2502195,0.00021616,2]
[358817895,1745464239079,-157.2502195,0.00021616,2]
[358817914,1745464239238,-566.6505297,0.00021616,2]
[358817916,1745464239248,-420.89490186,0.00021649,2]
[358817918,1745464239257,-168.5544976,0.00021786,2]
[358817920,1745464239266,-202.57339502,0.000218,2]
[358817922,1745464239276,-207.4,0.00021904,2]
[358817924,1745464239285,-151.0,0.00021904,2]
[358817926,1745464239295,-151.0,0.00021904,2]
[358817928,1745464239305,-502.26916348,0.00021917,2]
[358817930,1745464239315,-500.0,0.00021917,2]
[358817932,1745464239324,-502.57285542,0.00021917,2]
[358817934,1745464239335,-500.0,0.00021917,2]
[358817936,1745464239348,-500.0,0.00021917,2]
[358817937,1745464239357,-500.0,0.00021917,2]
[358817938,1745464239367,-500.0,0.00021917,2]
[358817939,1745464239377,-500.0,0.00021917,2]
[358817940,1745464239386,-500.0,0.00021917,2]
[358817941,1745464239396,-500.0,0.00021917,2]
[358817942,1745464239406,-500.0,0.00021917,2]
[358817943,1745464239415,-500.0,0.00021917,2]
[358817944,1745464239425,-582.88,0.00021917,2]
[358817945,1745464239436,-500.0,0.00021917,2]
[358817946,1745464239446,-500.0,0.00021917,2]
[358817947,1745464239456,-500.0,0.00021917,2]
[358817948,1745464239465,-500.0,0.00021917,2]
[358817949,1745464239474,-506.83902322,0.00021917,2]
[358817950,1745464239483,-500.0,0.00021917,2]
[358817951,1745464239492,-500.0,0.00021917,2]
[358817952,1745464239501,-500.0,0.00021917,2]
[358817953,1745464239511,-500.0,0.00021917,2]
[358817954,1745464239520,-151.0,0.00021917,2]
[358817955,1745464239529,-151.0,0.00021917,2]
[358817956,1745464239539,-386.90797935,0.00021917,2]
[358817957,1745464239548,-507.56621708,0.00021917,2]
[358817958,1745464239557,-280.53884047,0.00021917,2]
[358817959,1745464239566,-500.0,0.00021917,2]
[358817960,1745464239576,-500.0,0.00021917,2]
[358817961,1745464239585,-500.0,0.00021917,2]
[358817962,1745464239594,-500.0,0.00021917,2]
[358817963,1745464239604,-500.0,0.00021917,2]
[358817964,1745464239613,-500.0,0.00021917,2]
[358817965,1745464239621,-151.0,0.00021917,2]
[358817966,1745464239631,-151.0,0.00021917,2]
[358817967,1745464239640,-151.0,0.00021917,2]
[358817968,1745464239649,-500.0,0.00021917,2]
[358817969,1745464239658,-500.0,0.00021917,2]
[358817970,1745464239668,-500.0,0.00021917,2]
[358817971,1745464239677,-500.0,0.00021917,2]
[358817972,1745464239687,-500.0,0.00021917,2]
[358817973,1745464239696,-539.78,0.00021917,2]
[358817974,1745464239705,-500.0,0.00021917,2]
[358817975,1745464239717,-500.0,0.00021917,2]
[358817976,1745464239727,-500.0,0.00021917,2]
[358817977,1745464239737,-500.0,0.00021917,2]
[358817978,1745464239748,-500.0,0.00021917,2]
[358817979,1745464239758,-500.0,0.00021917,2]
[358817980,1745464239768,-500.0,0.00021917,2]
[358817981,1745464239780,-500.0,0.00021917,2]
[358817982,1745464239789,-500.0,0.00021917,2]
[358817983,1745464239797,-500.0,0.00021917,2]
[358817984,1745464239806,-500.0,0.00021917,2]
[358817985,1745464239815,-500.0,0.00021917,2]
[358817986,1745464239823,-500.0,0.00021917,2]
[358817987,1745464239833,-500.0,0.00021917,2]
[358817988,1745464239842,-428.06250819,0.00021917,2]
[358817989,1745464239852,-500.0,0.00021917,2]
[358817990,1745464239862,-500.0,0.00021917,2]
[358817991,1745464239872,-500.0,0.00021917,2]
[358817993,1745464239882,-500.0,0.00021917,2]
[358817995,1745464239892,-500.0,0.00021917,2]
[358817997,1745464239902,-500.0,0.00021917,2]
[358817999,1745464239911,-500.0,0.00021917,2]
[358818001,1745464239920,-500.0,0.00021917,2]
[358818003,1745464239930,-501.17870389,0.00021917,2]
[358818005,1745464239940,-500.0,0.00021917,2]
[358818007,1745464239949,-500.0,0.00021917,2]
[358818009,1745464239958,-502.98730615,0.00021917,2]
[358818011,1745464239968,-500.0,0.00021917,2]
[358818013,1745464239977,-500.0,0.00021917,2]
[358818015,1745464239986,-500.0,0.00021917,2]
[358818016,1745464239995,-523.82486154,0.00021917,2]
[358818017,1745464240005,-500.0,0.00021917,2]
[358818018,1745464240014,-526.7215694,0.00021917,2]
[358818019,1745464240024,-500.70716535,0.00021917,2]
[358818020,1745464240033,-500.0,0.00021917,2]
[358818021,1745464240043,-501.06019913,0.00021917,2]
[358818022,1745464240052,-500.0,0.00021917,2]
[358818023,1745464240062,-500.0,0.00021917,2]
[358818024,1745464240071,-500.0,0.00021917,2]
[358818025,1745464240081,-441.35833786,0.00021917,2]
[358818026,1745464240090,-500.0,0.00021917,2]
[358818027,1745464240099,-877.14,0.00021917,2]
[358818028,1745464240110,-500.0,0.00021917,2]
[358818029,1745464240125,-500.0,0.00021917,2]
[358818030,1745464240134,-504.52732277,0.00021917,2]
[358818031,1745464240143,-500.0,0.00021917,2]
[358818032,1745464240153,-183.50849938,0.00021917,2]
[358818033,1745464240162,-500.0,0.00021917,2]
[358818034,1745464240172,-500.0,0.00021917,2]
[358818035,1745464240182,-500.0,0.00021917,2]
[358818036,1745464240191,-500.0,0.00021917,2]
[358818037,1745464240201,-500.0,0.00021917,2]
[358818038,1745464240210,-500.0,0.00021917,2]
[358818039,1745464240219,-200.40416241,0.00021917,2]
[358818040,1745464240229,-500.0,0.00021917,2]
[358818041,1745464240239,-500.0,0.00021917,2]
[358818042,1745464240250,-500.0,0.00021917,2]
[358818043,1745464240259,-500.0,0.00021917,2]
[358818044,1745464240269,-500.0,0.00021917,2]
[358818045,1745464240278,-500.0,0.00021917,2]
[358818046,1745464240295,-501.35932787,0.00021917,2]
[358818047,1745464240312,-500.0,0.00021917,2]
[358818048,1745464240328,-500.0,0.00021917,2]
[358818049,1745464240340,-500.0,0.00021917,2]
[358818050,1745464240357,-439.0,0.00021917,2]
[358818051,1745464240374,-500.0,0.00021917,2]
[358818052,1745464240388,-500.0,0.00021917,2]
[358818053,1745464240402,-500.0,0.00021917,2]
[358818054,1745464240420,-500.0,0.00021917,2]
[358818055,1745464240434,-500.0,0.00021917,2]
[358818056,1745464240450,-500.0,0.00021917,2]
[358818057,1745464240463,-500.0,0.00021917,2]
[358818058,1745464240479,-500.0,0.00021917,2]
[358818059,1745464240493,-500.0,0.00021917,2]
[358818060,1745464240506,-511.86141458,0.00021917,2]
[358818061,1745464240519,-500.0,0.00021917,2]
[358818062,1745464240532,-500.0,0.00021917,2]
[358818063,1745464240547,-500.0,0.00021917,2]
[358818064,1745464240563,-500.0,0.00021917,2]
[358818066,1745464240578,-728.17,0.00021917,2]
[358818067,1745464240594,-500.0,0.00021917,2]
[358818068,1745464240610,-504.88759479,0.00021917,2]
[358818069,1745464240624,-151.0,0.00021917,2]
[358818070,1745464240635,-151.0,0.00021917,2]
[358818071,1745464240646,-151.0,0.00021917,2]
[358818072,1745464240661,-500.0,0.00021917,2]
[358818073,1745464240677,-500.0,0.00021917,2]
[358818074,1745464240691,-635.31,0.00021917,2]
[358818075,1745464240703,-500.0,0.00021917,2]
[358818076,1745464240716,-500.0,0.00021917,2]
[358818077,1745464240731,-500.0,0.00021917,2]
[358818078,1745464240743,-500.0,0.00021917,2]
[358818079,1745464240755,-500.0,0.00021917,2]
[358818080,1745464240766,-605.1517513,0.00021917,2]
[358818081,1745464240779,-703.68,0.00021917,2]
[358818082,1745464240792,-500.0,0.00021917,2]
[358818083,1745464240805,-916.71,0.00021917,2]
[358818084,1745464240821,-607.3,0.00021917,2]
[358818085,1745464240833,-500.0,0.00021917,2]
[358818086,1745464240846,-507.00392296,0.00021917,2]
[358818087,1745464240859,-500.0,0.00021917,2]
[358818088,1745464240872,-500.0,0.00021917,2]
[358818089,1745464240884,-500.0,0.00021917,2]
[358818090,1745464240898,-500.0,0.00021917,2]
[358818091,1745464240912,-151.0,0.00021917,2]
[358818092,1745464240924,-151.0,0.00021917,2]
[358818093,1745464240937,-151.0,0.00021917,2]
[358818094,1745464240953,-500.0,0.00021917,2]
[358818095,1745464240967,-500.0,0.00021917,2]
[358818096,1745464240980,-1003.86,0.00021917,2]
[358818097,1745464240993,-901.99,0.00021917,2]
[358818098,1745464241006,-1177.97,0.00021917,2]
[358818099,1745464241019,-500.0,0.00021917,2]
[358818100,1745464241032,-503.90102942,0.00021917,2]
[358818101,1745464241045,-500.0,0.00021917,2]
[358818102,1745464241058,-926.61,0.00021917,2]
[358818103,1745464241071,-511.25355893,0.00021917,2]
[358818104,1745464241084,-500.0,0.00021917,2]
[358818105,1745464241098,-500.0,0.00021917,2]
[358818106,1745464241111,-500.0,0.00021917,2]
[358818107,1745464241124,-500.0,0.00021917,2]
[358818108,1745464241137,-500.0,0.00021917,2]
[358818109,1745464241150,-500.0,0.00021917,2]
[358818110,1745464241163,-463.90463715,0.00021917,2]
[358818111,1745464241175,-500.0,0.00021917,2]
[358818112,1745464241188,-399.0784713,0.00021917,2]
[358818113,1745464241202,-1635.17,0.00021917,2]
[358818114,1745464241215,-1635.17,0.00021917,2]
[358818115,1745464241228,-500.0,0.00021917,2]
[358818116,1745464241241,-1635.17,0.00021917,2]
[358818117,1745464241254,-1635.17,0.00021917,2]
[358818118,1745464241268,-1635.17,0.00021917,2]
[358818119,1745464241281,-1635.17,0.00021917,2]
[358818120,1745464241294,-1635.17,0.00021917,2]
[358818121,1745464241306,-1635.17,0.00021917,2]
[358818122,1745464241319,-1635.17,0.00021917,2]
[358818123,1745464241332,-1635.17,0.00021917,2]
[358818124,1745464241346,-1635.17,0.00021917,2]
[358818125,1745464241360,-1635.17,0.00021917,2]
[358818126,1745464241372,-500.0,0.00021917,2]
[358818127,1745464241385,-500.0,0.00021917,2]
[358818128,1745464241398,-509.72264243,0.00021917,2]
[358818129,1745464241411,-500.0,0.00021917,2]
[358818130,1745464241424,-505.18507414,0.00021917,2]
[358818131,1745464241438,-500.0,0.00021917,2]
[358818132,1745464241452,-500.0,0.00021917,2]
[358818133,1745464241466,-500.0,0.00021917,2]
[358818134,1745464241479,-526.71525748,0.00021917,2]
[358818135,1745464241493,-602.37,0.00021917,2]
[358818136,1745464241507,-602.37,0.00021917,2]
[358818137,1745464241520,-602.37,0.00021917,2]
[358818138,1745464241533,-602.37,0.00021917,2]
[358818139,1745464241547,-602.37,0.00021917,2]
[358818140,1745464241560,-602.37,0.00021917,2]
[358818141,1745464241573,-151.0,0.00021917,2]
[358818142,1745464241586,-602.37,0.00021917,2]
[358818143,1745464241600,-602.37,0.00021917,2]
[358818144,1745464241613,-602.37,0.00021917,2]
[358818145,1745464241626,-602.37,0.00021917,2]
[358818146,1745464241640,-602.37,0.00021917,2]
[358818147,1745464241652,-602.37,0.00021917,2]
[358818148,1745464241663,-602.37,0.00021917,2]
[358818149,1745464241673,-602.37,0.00021917,2]
[358818150,1745464241682,-500.0,0.00021917,2]
[358818151,1745464241692,-500.0,0.00021917,2]
[358818152,1745464241702,-500.0,0.00021917,2]
[358818153,1745464241712,-500.0,0.00021917,2]
[358818155,1745464241722,-500.0,0.00021917,2]
[358818167,1745464242014,-1000.0,0.00021917,2]
[358818168,1745464242047,-151.0,0.00021917,2]
[358818169,1745464242065,-151.0,0.00021917,2]
[358818170,1745464242076,-151.0,0.00021917,2]
[358818171,1745464242085,-500.0,0.00021917,2]
[358818172,1745464242095,-151.0,0.00021917,2]
[358818173,1745464242105,-151.0,0.00021917,2]
[358818174,1745464242117,-293.237467,0.00021917,2]
[358818175,1745464242126,-500.0,0.00021917,2]
[358818176,1745464242136,-532.50515419,0.00021917,2]
[358818177,1745464242146,-500.0,0.00021917,2]
[358818178,1745464242157,-500.0,0.00021917,2]
[358818179,1745464242166,-500.0,0.00021917,2]
[358818180,1745464242176,-500.0,0.00021917,2]
[358818181,1745464242185,-500.0,0.00021917,2]
[358818182,1745464242195,-500.0,0.00021917,2]
[358818183,1745464242205,-500.0,0.00021917,2]
[358818184,1745464242214,-500.0,0.00021917,2]
[358818185,1745464242223,-501.02104774,0.00021917,2]
[358818186,1745464242233,-500.0,0.00021917,2]
[358818187,1745464242243,-500.0,0.00021917,2]
[358818188,1745464242252,-500.0,0.00021917,2]
[358818189,1745464242262,-500.0,0.00021917,2]
[358818190,1745464242271,-500.0,0.00021917,2]
[358818191,1745464242281,-500.0,0.00021917,2]
[358818192,1745464242291,-500.0,0.00021917,2]
[358818193,1745464242300,-500.0,0.00021917,2]
[358818194,1745464242310,-937.41,0.00021917,2]
[358818195,1745464242319,-500.58519002,0.00021917,2]
[358818196,1745464242329,-504.98040982,0.00021917,2]
[358818197,1745464242340,-500.0,0.00021917,2]
[358818198,1745464242352,-500.0,0.00021917,2]
[358818199,1745464242361,-500.0,0.00021917,2]
[358818200,1745464242371,-500.0,0.00021917,2]
[358818201,1745464242380,-500.0,0.00021917,2]
[358818202,1745464242390,-503.58436032,0.00021917,2]
[358818203,1745464242399,-500.0,0.00021917,2]
[358818204,1745464242408,-500.0,0.00021917,2]
[358818205,1745464242418,-500.0,0.00021917,2]
[358818206,1745464242428,-500.0,0.00021917,2]
[358818207,1745464242437,-500.0,0.00021917,2]
[358818208,1745464242448,-500.0,0.00021917,2]
[358818209,1745464242458,-501.56233678,0.00021917,2]
[358818210,1745464242468,-500.0,0.00021917,2]
[358818211,1745464242478,-770.49,0.00021917,2]
[358818212,1745464242487,-501.32342498,0.00021917,2]
[358818213,1745464242498,-505.16871895,0.00021917,2]
[358818214,1745464242508,-500.0,0.00021917,2]
[358818215,1745464242518,-500.0,0.00021917,2]
[358818216,1745464242527,-500.0,0.00021917,2]
[358818217,1745464242537,-500.0,0.00021917,2]
[358818218,1745464242547,-500.0,0.00021917,2]
[358818219,1745464242557,-500.0,0.00021917,2]
[358818220,1745464242567,-500.0,0.00021917,2]
[358818221,1745464242577,-500.0,0.00021917,2]
[358818222,1745464242586,-500.0,0.00021917,2]
[358818223,1745464242596,-500.0,0.00021917,2]
[358818224,1745464242606,-500.0,0.00021917,2]
[358818225,1745464242615,-1089.35,0.00021917,2]
[358818226,1745464242624,-1089.35,0.00021917,2]
[358818227,1745464242634,-1089.35,0.00021917,2]
[358818228,1745464242643,-1089.35,0.00021917,2]
[358818229,1745464242652,-500.0,0.00021917,2]
[358818230,1745464242662,-1089.35,0.00021917,2]
[358818231,1745464242671,-1089.35,0.00021917,2]
[358818232,1745464242681,-500.0,0.00021917,2]
[358818233,1745464242691,-1089.35,0.00021917,2]
[358818234,1745464242700,-1089.35,0.00021917,2]
[358818235,1745464242710,-1089.35,0.00021917,2]
[358818236,1745464242720,-1089.35,0.00021917,2]
[358818238,1745464242729,-1089.35,0.00021917,2]
[358818239,1745464242739,-1089.35,0.00021917,2]
[358818240,1745464242749,-1089.35,0.00021917,2]
[358818241,1745464242758,-1089.35,0.00021917,2]
[358818242,1745464242768,-1089.35,0.00021917,2]
[358818243,1745464242777,-1089.35,0.00021917,2]
[358818244,1745464242787,-151.0,0.00021917,2]
[358818245,1745464242797,-1089.35,0.00021917,2]
[358818246,1745464242806,-1089.35,0.00021917,2]
[358818247,1745464242815,-151.0,0.00021917,2]
[358818248,1745464242825,-1089.35,0.00021917,2]
[358818249,1745464242834,-1089.35,0.00021917,2]
[358818250,1745464242843,-503.36220906,0.00021917,2]
[358818251,1745464242853,-151.0,0.00021917,2]